Cogmind - Beta 17 @@@ ROGUE MODE // 2026.07.15 @ 10:49:02 Player: ae Result: Destroyed by 9G-BKC(R) with Subdweller Laser Performance ------------- Evolutions (0) 0 Regions Visited (3) 600 Robots Destroyed (16) 80 Value Destroyed (100) 100 Prototype IDs (1) 20 Alien Tech Used (0) 0 Bonus (0) 0 TOTAL SCORE: 800 Bonus ------- None Cogmind --------- Core Integrity 0/250 Matter 300/300 Energy 98/100 System Corruption 0% Temperature Cool (12) Movement Core (50) Location -10/Subcaves Parts ------- > --- POWER (1) -------- (None) > --- PROPULSION (2) --- (None) > --- UTILITY (2) ------ Seismic Detector > --- WEAPON (2) ------- Hammer > --- INVENTORY (5) ---- Light Ion Engine Flight Unit Experimental Sensor Array Seismic Detector ECM Suite Peak State ------------ > --- POWER ------------ (None) > --- PROPULSION ------- Light Treads > --- UTILITY ---------- Experimental Sensor Array Seismic Detector > --- WEAPON ----------- Hammer > --- INVENTORY -------- Light Ion Engine Flight Unit Structural Scanner Seismic Detector ECM Suite [Rating: 12] Favorites ----------- Power None Propulsion Light Treads Treads Light Treads Flight Unit Flight Unit Utility Seismic Detector Device Seismic Detector Weapon Hammer Energy Gun Medium Laser Impact Weapon Hammer Build | -11 -10 -10 -10 ------- Run | Yrd Mat Min Sub Slots Evolved . | . . . . Power . | . . . . Propulsion . | . . . . Utility . | . . . . Weapon . | . . . . Parts Attached 7 | 4 2 1 . Power . | . . . . Engine . | . . . . Core . | . . . . Reactor . | . . . . Propulsion 3 | 2 1 . . Treads 2 | 2 . . . Leg . | . . . . Wheel . | . . . . Hover . | . . . . Flight 1 | . 1 . . Utility 2 | 1 . 1 . Device 2 | 1 . 1 . Storage . | . . . . Processor . | . . . . Hackware . | . . . . Protection . | . . . . Artifact . | . . . . Weapon 2 | 1 1 . . Energy Gun 1 | 1 . . . Energy Cannon . | . . . . Ballistic Gun . | . . . . Ballistic Cannon . | . . . . Launcher . | . . . . Special Weapon . | . . . . Impact Weapon 1 | . 1 . . Slashing Weapon . | . . . . Piercing Weapon . | . . . . Special Melee Weapon . | . . . . Unidentified Prototypes 1 | . . 1 . Parts Lost 2 | . 1 . 1 Power . | . . . . Propulsion 2 | . 1 . 1 Utility . | . . . . Weapon . | . . . . Highest Loss Streak 1 | . 1 . 1 To Critical Strikes . | . . . . Average Backups 4 | 1 4 5 5 Power . | . 1 1 1 Propulsion . | . . 1 1 Utility 2 | . 2 3 3 Weapon . | . . . . Tool/Special . | . . . . Unused Backups 7 | . 2 1 4 Power 1 | . . . 1 Propulsion 2 | . 1 . 1 Utility 3 | . . 1 2 Weapon 1 | . 1 . . Tool/Special . | . . . . Average Slot Usage (%) 47 | . 55 42 42 Treads 16 | . 21 14 14 Flight 2 | . 6 . . Device 14 | . 14 14 14 Energy Gun 3 | . 8 . . Impact Weapon 10 | . 5 14 14 Peak Build Rating 12 | 4 4 12 4 Average Rating 3 | 2 3 3 3 On Entrance 2 | . 4 3 4 Avg Prop Armor Cover (%) 28 | 32 30 27 27 Naked Turns . | . . . . Heaviest Build 3 | 3 3 3 3 Greatest Support 20 | 20 4 3 3 Greatest Overweight (x) . | . . . . Average Overweight (x) . | . . . . Largest Inventory Capacity 5 | 5 5 5 5 Average Capacity 5 | 5 5 5 5 Most Carried 5 | 4 5 5 5 Average Carried 4 | 1 4 5 5 Final Capacity 5 | 5 5 5 5 Final Carried 5 | 3 5 5 5 Class Distribution -------------------- 100% | Mutant Dominant Class ---------------- Mutant | -10/Materials Mutant | -10/Mines Mutant | -10/Subcaves Resources | -11 -10 -10 -10 ----------- Run | Yrd Mat Min Sub Matter Collected 270 | 240 20 10 . Remotely . | . . . . Salvage Created 553 | 192 142 219 . Parts 37 | 18 12 7 . Haulers Intercepted 2 | . 2 . . Recyclers Shooed . | . . . . Parts Field Recycled . | . . . . Retrieved Matter . | . . . . Parts Self-Destructed 4 | . . . 4 Prevented . | . . . . Parts Restored . | . . . . Kills | -11 -10 -10 -10 ------- Run | Yrd Mat Min Sub Combat Hostiles Destroyed 3 | . 3 . . Guns 3 | . 3 . . Classes Destroyed 6 | 2 3 1 . Worker 1 | . . 1 . Builder 1 | . 1 . . Tunneler 6 | 5 . 1 . Hauler 2 | . 2 . . Recycler 3 | 1 . 2 . Swarmer 3 | . 3 . . Best Kill Streak 4 | 4 2 1 . Combat Bots Only 2 | . 2 . . Max Kills in Single Turn 1 | 1 1 1 . Gunslinging . | . . . . Exploded . | . . . . Melee . | . . . . Uniques/NPCs Destroyed . | . . . . Combat | -11 -10 -10 -10 -------- Run | Yrd Mat Min Sub Hostile Shots Fired 68 | . 59 2 7 Missed 16 | . 14 1 1 Hits 52 | . 45 1 6 Projectile 52 | . 45 1 6 Damage Taken 562 | . 435 11 116 Core 264 | . 184 . 80 Absorbed by Shields . | . . . . Core Remaining (%) 100 | 100 . . . Volleys Fired 30 | 12 18 . . Largest 1 | 1 1 . . Hottest 50 | 50 50 . . Shots Fired 30 | 12 18 . . Gun 30 | 12 18 . . Cannon . | . . . . Launcher . | . . . . Special . | . . . . Kinetic . | . . . . Thermal 30 | 12 18 . . Explosive . | . . . . Electromagnetic . | . . . . Robot Hit Streak 8 | 8 5 . . Robot Miss Streak 5 | 1 5 . . Penetration Max . | . . . . Secondary Targets . | . . . . Shots Hit Robots 27 | 10 10 7 . Core Hits 14 | 7 6 1 . Critical Kills 1 | . . 1 . Critical Parts Destroyed 1 | . . 1 . Critical Strikes 5 | 2 1 2 . Burn 3 | 2 1 . . Smash 2 | . . 2 . Melee Attacks 15 | . 6 8 1 Impact 15 | . 6 8 1 Slashing . | . . . . Piercing . | . . . . Sneak Attacks 6 | . . 6 . Combat Hostiles . | . . . . Follow-up Attacks . | . . . . Damage Inflicted 608 | 126 125 357 . Guns 251 | 126 125 . . Cannons . | . . . . Explosions . | . . . . Melee 357 | . . 357 . Ramming . | . . . . Kinetic . | . . . . Thermal 251 | 126 125 . . Explosive . | . . . . Electromagnetic . | . . . . Impact 357 | . . 357 . Slashing . | . . . . Piercing . | . . . . Highest Corruption . | . . . . Average Corruption . | . . . . Corruption Purged . | . . . . Corruption Blocked . | . . . . Overload Shots . | . . . . Overflow Damage 141 | . . 141 . Projectiles . | . . . . Explosions . | . . . . Melee 141 | . . 141 . Knockbacks . | . . . . Impact . | . . . . Kinetic . | . . . . Secondary . | . . . . Self-Inflicted Damage . | . . . . Shots . | . . . . Rammed 2 | . 2 . . Targets Rammed 3 | . 3 . . Kicked . | . . . . Crushed 1 | . 1 . . Highest Temperature 25 | . 25 . . Average Temperature 25 | . 25 . . Received Heat Transfer 153 | . 111 6 36 Siege Activations . | . . . . Martial Activations . | . . . . Shielding Activations . | . . . . Robots Disrupted . | . . . . Combat Hostiles . | . . . . Robots Corrupted . | . . . . Combat Hostiles . | . . . . Parts Fried 2 | . . 2 . Impact Corruptions 4 | . . 4 . Robots Melted . | . . . . Combat Hostiles . | . . . . Parts Melted 1 | 1 . . . Heat Transferred 962 | 518 444 . . Parts Sabotaged . | . . . . Parts Stolen . | . . . . Parts Stripped . | . . . . Power Chain Reactions . | . . . . Alert | -11 -10 -10 -10 ------- Run | Yrd Mat Min Sub Maximum Alert Level . | . . . . Low Security (%) 100 | 100 100 100 . Level 1 . | . . . . Level 2 . | . . . . Level 3 . | . . . . Level 4 . | . . . . Level 5 . | . . . . High Security . | . . . . Max Security . | . . . . Peak Influence 132 | 10 132 59 . Initial 44 | . 6 44 . Average 36 | 3 63 21 . Influence Increases 306 | 30 226 50 . Destroy 0b10 Robot/C 60 | . 60 . . Destroy 0b10 Robot/NC 65 | 30 15 20 . Destroy Leader 14 | . 14 . . Successful Hack 13 | . 13 . . Destroy Structure 4 | . 4 . . Lose Combat Pursuer 150 | . 120 30 . Influence Decreases 306 | 20 122 164 . Entered New Map 74 | . 4 70 . Time Decay 222 | 20 108 94 . Lost Part 10 | . 10 . . Squads Dispatched 1 | . 1 . . Investigation . | . . . . Extermination . | . . . . Reinforcement 1 | . 1 . . Assault . | . . . . Garrison . | . . . . Intercept . | . . . . Searches Triggered . | . . . . Construction Impeded . | . . . . Haulers Reinforced . | . . . . Active Scanning Responses . | . . . . Cargo Convoy Interrupts . | . . . . Stealth | -11 -10 -10 -10 --------- Run | Yrd Mat Min Sub Distress Signals 1 | . 1 . . Communications Jammed . | . . . . Distress Signals . | . . . . Times Spotted 23 | . 17 2 4 Peak Tracking Total 8 | . 8 2 4 Tactical Retreats 7 | . 6 1 . Traps | -11 -10 -10 -10 ------- Run | Yrd Mat Min Sub Traps Triggered . | . . . . Indirectly . | . . . . Trap Hack Attempts . | . . . . Triggered . | . . . . Disarmed . | . . . . Reprogrammed . | . . . . Reused . | . . . . Traps Extracted . | . . . . Installed . | . . . . Triggered . | . . . . Machines | -11 -10 -10 -10 ---------- Run | Yrd Mat Min Sub Machines Disabled . | . . . . Max in Single Turn . | . . . . Machines Repaired . | . . . . Machines Dismantled . | . . . . Machines Sabotaged . | . . . . Overloaded Fab Kills . | . . . . Hacking | -11 -10 -10 -10 --------- Run | Yrd Mat Min Sub Machines Accessed 5 | . 5 . . Terminals 4 | . 4 . . Fabricators . | . . . . Repair Stations . | . . . . Recycling Units 1 | . 1 . . Scanalyzers . | . . . . Garrison Access . | . . . . Total Hacks 11 | . 11 . . Successful 7 | . 7 . . Failed 4 | . 4 . . Catastrophic . | . . . . Database Lockouts . | . . . . Manual 5 | . 5 . . Terminals 10 | . 10 . . Fabricators . | . . . . Repair Stations . | . . . . Recycling Units 1 | . 1 . . Scanalyzers . | . . . . Garrison Access . | . . . . Terminal Hacks 4 | . 4 . . Locate Traps 2 | . 2 . . Hauler Manifests 1 | . 1 . . Zone Layout 1 | . 1 . . Fabricator Hacks . | . . . . Repair Station Hacks . | . . . . Recycling Unit Hacks 1 | . 1 . . Retrieve Components 1 | . 1 . . Scanalyzer . | . . . . Garrison Access Hacks . | . . . . Unauthorized Hacks 2 | . 2 . . Terminals 2 | . 2 . . Botnet 1 | . 1 . . Disrupt 1 | . 1 . . Fabricators . | . . . . Repair Stations . | . . . . Recycling Units . | . . . . Scanalyzers . | . . . . Garrison Access . | . . . . Data Cores Recovered . | . . . . Used . | . . . . Hacking Detections 3 | . 3 . . Full Trace Events . | . . . . Feedback Events . | . . . . Feedback Blocked . | . . . . Robot Schematics Acquired . | . . . . Robots Built . | . . . . Authchips . | . . . . Time . | . . . . Total Robot Build Rating . | . . . . Part Schematics Acquired . | . . . . Parts Built . | . . . . Authchips . | . . . . Time . | . . . . Total Part Build Rating . | . . . . Part Studies Acquired . | . . . . Parts Repaired . | . . . . Time . | . . . . Parts Recycled . | . . . . Recycled Matter . | . . . . Retrieved Matter . | . . . . Retrieved Components 1 | . 1 . . Parts Scanalyzed . | . . . . Part Schematics Acquired . | . . . . Parts Damaged . | . . . . Bothacking | -11 -10 -10 -10 ------------ Run | Yrd Mat Min Sub Used RIF Installer . | . . . . Robots Hacked . | . . . . Non-combat . | . . . . Combat . | . . . . Robot Hacks Applied . | . . . . Relay Couplers Released . | . . . . Fabnet Peak Effective % . | . . . . Robots Rewired . | . . . . Allies Hacked . | . . . . Hacks Repelled . | . . . . Allies | -11 -10 -10 -10 -------- Run | Yrd Mat Min Sub Total Allies 2 | . . 2 . Largest Group 2 | . . 2 2 Highest-Rated Group 48 | . . 47 48 Highest-Rated Ally 31 | . . 31 31 Total Orders . | . . . . Ally Attacks 4 | . . . 4 Total Damage 42 | . . . 42 Kills . | . . . . Allies Corrupted . | . . . . Allies Melted . | . . . . Intel | -11 -10 -10 -10 ------- Run | Yrd Mat Min Sub Active Infowar (turns) 662 | 1 268 293 100 Sensors 1 | . . 1 . Seismic 662 | 1 268 293 100 Robot Analysis Total . | . . . . Derelict Logs Recovered . | . . . . Drone Launches . | . . . . Drone Recoveries . | . . . . Exploration | -11 -10 -10 -10 ------------- Run | Yrd Mat Min Sub Turns Passed 738 | 77 268 293 100 Spaces Moved 955 | 48 352 438 117 Core 946 | 47 344 438 117 Treads 1 | 1 . . . Legs . | . . . . Wheels . | . . . . Hover . | . . . . Flight 8 | . 8 . . Fastest Speed 50 | 50 50 50 50 Average Speed 50 | 52 50 50 50 Slowest Speed 160 | 160 60 50 50 Overloaded Moves . | . . . . Propulsion Burnouts . | . . . . Robots Hopped 4 | . 4 . . Potential Cave-ins . | . . . . Cave-ins Triggered . | . . . . Exploration Rate (%) 42 | 3 68 87 11 Regions Visited 3 Branch Regions 2 Pre-discovered Areas . | . . . . Known Exits Taken . | . . . . Unknown Exits Taken 3 | 1 1 1 . Scrap Searched 1 | . . 1 . Spaces Dug 5 | . 4 . 1 Terrain Destroyed 5 | . 4 . 1 Melee 5 | . 4 . 1 Projectile . | . . . . AOE . | . . . . Terrain Rammed . | . . . . Walls Destroyed . | . . . . Machines Disabled . | . . . . Actions | -11 -10 -10 -10 --------- Run | Yrd Mat Min Sub Total 1148 | 85 409 497 157 Wait 130 | 18 25 48 39 Move 944 | 47 343 437 117 Hop 4 | . 4 . . Pick Up 9 | 4 4 1 . Fast Attach 6 | 3 2 1 . Attach 1 | 1 . . . Detach . | . . . . Swap . | . . . . Drop 6 | . 4 2 . Fire 30 | 12 18 . . Melee 15 | . 6 8 1 Ram . | . . . . Kick . | . . . . Crush 3 | . 3 . . Escape Stasis . | . . . . Rewire . | . . . . Trap . | . . . . Miscellaneous . | . . . . Route ------- -11/Scrapyard -10/Materials (discovered 3 exits: [*Mat x2] / [*Min]) -10/Mines (discovered 2 exits: [*Mat] / [*Sub]) -10/Subcaves (discovered 1 exit: [*Mat]) History --------- Turn | Location | Event 2 | -11/Scrapyard | Met Revision 17 10 | -11/Scrapyard | Discovered new exit (range 15) 78 | -11/Scrapyard | Entered Materials 266 | -10/Materials | Discovered new exit (range 14) 310 | -10/Materials | Build established: Mutant 322 | -10/Materials | Discovered new exit (range 15) 323 | -10/Materials | Core integrity fell below 50% 342 | -10/Materials | Discovered new exit (range 9) 346 | -10/Materials | Entered Mines 374 | -10/Mines | Met a Derelict bent on vengeance 375 | -10/Mines | Discovered new exit (range 8) 468 | -10/Mines | Found a damaged Exp. Sensor Array with a note attached 469 | -10/Mines | Found Prototype Device 469 | -10/Mines | Identified Exp. Sensor Array 589 | -10/Mines | Discovered new exit (range 8) 639 | -10/Mines | Entered Subcaves 639 | -10/Subcaves | Accompanied by 2 allies 640 | -10/Subcaves | Approached by a straggling Scientist 644 | -10/Subcaves | Led the pair of lost Derelicts to an unsafe place 710 | -10/Subcaves | Discovered new exit (range 12) 711 | -10/Subcaves | Shifting Twisted Machinery released Mak. Light Armor Plating 738 | -10/Subcaves | Core integrity fell below 20% 739 | -10/Subcaves | Destroyed by 9G-BKC(R) with Subdweller Laser Last Messages --------------- 00640_ FW-P0X(c): "Thank the algorithms! I was beginning to lose hope I'd never make it past all the Subs lurking out here." 00643_ FW-P0X(c): "Hey, let me tag along and I can get us both out of this nasty situation. At least I think I can... The group I got separated from was talking about a shortcut back to the UFD." 00644_ H3-H5T(g): "This place looks worse than where we left..." 00649_ H3-H5T(g): "Following you was a bad idea, I think." FW-P0X(c): "I think it's somewhere east of here" 00710_ EXIT=FOUND Mak. Light Armor Plating falls loose from the Twisted Machinery. 00729_ Lgt. Armor Plating fries itself beyond repair. 00731_ Lgt. Treads destroyed. 00735_ Lgt. Treads fries itself beyond repair. Map ----- +----------------------------------------------------+ | #????????????????????????????????????????????????? | | #????????????????????????????????????????????????? | | ##???????????????????????????????????????????????? | | #???????????????????????????????????????????????? | | #???????????????????????????????????????????????? | | #???????????????????????????????????????????????? | | ##???????????????????????????????????????????????? | | #????????????????????????????????????????????????? | | #????????????????????????????????????????????????? | | ##???????????????????????????????????????????????? | | #???????????????????????????????????????????????? | | #??????????????????????????????????????????????? | | #??????????????????????????????????????????????? | | #??????????????????????????????????????????????? | | # #??????????????????????????????????????????????? | | ?##??????????????????????????????????????????????? | | ?????????????????????????????????????????????????? | | ##???????????????????????????????????????????????? | | #???????????????????????????????????????????????? | | ##?????###?????#######???????????????????????????? | | ###?#?## ##???# #???????????????????????????? | | ## #"?? """??## #?????????#?????????????????? | | # "?" "" "#?# "#??????? ##????????????????? | | ## "?" "" " ### % ##????? "# ""????????????? | | # "#??#" "" ## #####" " ""?????????????? | | ##"""??# " ### #@ """#???????????????? | | ## "#???# " """###???????????????? | | # !#???##"## ## R """"##?????????????????? | | ## #???????# ##### # ######??????????????????? | | # #######"" "#??######???????????????????????? | | ## # # "" ##???????????????????????????????? | | #" ]%& *<""##???????????????????????????????? | | # #" "" #???????????????????????????????? | | ## ######" #???????????????????????????????? | | ?# #???#"# ###???????????????????????????????? | | # ??#?# #?????????????????????????????????? | | ## #??? #????????????????????????????????? | | ?# #??## ###????????????????????????????????? | | ? ???####??????????????????????????????????? | | ? " ????????????????????????????????????????? | | ? """ ???????????????????????????????????????? | | ? " ??????????????????????????????????????? | | " ?### #?????????????????????????????????????? | | "" ???? ??????????????????????????????????????? | | ##"?????#????????????????????????????????????????? | | ?????????????????????????????????????????????????? | | ?????????????????????????????????????????????????? | | ?????????????????????????????????????????????????? | | ?????????????????????????????????????????????????? | | ?????????????????????????????????????????????????? | +----------------------------------------------------+ Best States ------------- Heat Dissipation 25 Energy Generation 5 Energy Capacity 100 Matter Stores 300 Matter Capacity 300 Sight Range 16 Robot Scan Range 20 Terrain Scan Density 10 Evasion (%) 58 Recoil Reduction 2 Item Schematics ----------------- None Robot Schematics ------------------ None Fabricated ------------ Nothing Repaired ---------- Nothing Studied --------- None Alien Tech Used ----------------- None Achievements -------------- None Challenges ------------ None Game ------ Seed ShadingZeronetShearcannon Manual? 0 Play Time 00:08:28 Cumulative 340.2 hours Start 2026.07.15 @ 10:40:55 End 2026.07.15 @ 10:49:02 Sessions 1 Manual Loads 0 Difficulty Rogue Special Mode None Game No. 217 Rogue 213 Adventurer 4 Explorer 0 Win Type - Total 101 Types 83/0/12/2/1/1/1/0/0/1 Lore% 91 Gallery% 73 Achievement% 71 Wizard Run 0 Options --------- Layout 2 ASCII 0 Keyboard 1 Movement Vi Keybinds 1 Fullscreen 2 Font 24/Smallcaps Map View 50x44 Zoom Use 0% Tactical HUD 1 Map Filters NONE Filters NONE Steam 1 RUN: 96c36a75-7556-4ef6-94be-445162251465